[Event "Live Chess"]
[Site "Chess.com"]
[Date "2023.05.20"]
[Round "-"]
[White "Crowded_House"]
[Black "TheSmoulderingMaster"]
[Result "0-1"]
[WhiteElo "1677"]
[BlackElo "1804"]
[TimeControl "300"]
[EndTime "9:28:04 PDT"]
[Termination "TheSmoulderingMaster won by checkmate"]

1. d4 {[%clk 0:04:58.9]} 1... Nf6 {[%clk 0:04:57.8]} 2. Bg5 {[%clk 0:04:58.3]}
2... Ne4 {[%clk 0:04:55.4]} 3. Bh4 {[%clk 0:04:56.4]} 3... c6 {[%clk 0:04:54]}
4. c3 {[%clk 0:04:50.2]} 4... Qb6 {[%clk 0:04:50]} 5. b3 {[%clk 0:04:46.5]} 5...
Na6 {[%clk 0:04:46.6]} 6. Nd2 {[%clk 0:04:40.2]} 6... Nxc3 {[%clk 0:04:41.6]} 7.
Qc2 {[%clk 0:04:32.9]} 7... Qxd4 {[%clk 0:04:36.5]} 8. Ndf3 {[%clk 0:04:24.2]}
8... Qb4 {[%clk 0:04:29.8]} 9. Qd2 {[%clk 0:04:15.4]} 9... g6 {[%clk 0:04:21.8]}
10. e3 {[%clk 0:03:48.7]} 10... Bg7 {[%clk 0:04:14.4]} 11. Rc1 {[%clk
0:03:40.6]} 11... O-O {[%clk 0:04:12.3]} 12. Ne2 {[%clk 0:03:35]} 12... d5
{[%clk 0:03:53]} 13. Nxc3 {[%clk 0:03:31.4]} 13... Bg4 {[%clk 0:03:47.6]} 14.
Be2 {[%clk 0:03:19]} 14... Bxf3 {[%clk 0:03:44]} 15. Bxf3 {[%clk 0:03:17.6]}
15... Qxh4 {[%clk 0:03:42.2]} 16. O-O {[%clk 0:03:10.6]} 16... e5 {[%clk
0:03:36.2]} 17. g3 {[%clk 0:02:56.2]} 17... Qf6 {[%clk 0:03:32.1]} 18. Bg2
{[%clk 0:02:52.1]} 18... e4 {[%clk 0:03:26.3]} 19. Ne2 {[%clk 0:02:44.3]} 19...
Nc7 {[%clk 0:03:23.3]} 20. Nf4 {[%clk 0:02:38.9]} 20... Rfe8 {[%clk 0:03:20.8]}
21. a4 {[%clk 0:02:31.8]} 21... Rad8 {[%clk 0:03:16.9]} 22. b4 {[%clk
0:02:29.7]} 22... d4 {[%clk 0:03:14.3]} 23. exd4 {[%clk 0:02:19.3]} 23... Rxd4
{[%clk 0:03:12.2]} 24. Qe1 {[%clk 0:02:17.6]} 24... Bh6 {[%clk 0:03:07.2]} 25.
Rd1 {[%clk 0:01:55.7]} 25... Rxd1 {[%clk 0:03:00.9]} 26. Qxd1 {[%clk 0:01:54.3]}
26... Bxf4 {[%clk 0:02:59.9]} 27. gxf4 {[%clk 0:01:54.1]} 27... Qxf4 {[%clk
0:02:59]} 28. Qd7 {[%clk 0:01:45]} 28... Qe5 {[%clk 0:02:54.5]} 29. Re1 {[%clk
0:01:34.6]} 29... Re7 {[%clk 0:02:52.5]} 30. Qd8+ {[%clk 0:01:31.3]} 30... Kg7
{[%clk 0:02:51.3]} 31. Qd2 {[%clk 0:01:21.1]} 31... Nd5 {[%clk 0:02:49.8]} 32.
b5 {[%clk 0:01:18.2]} 32... Nf4 {[%clk 0:02:47]} 33. bxc6 {[%clk 0:01:08.9]}
33... Qg5 {[%clk 0:02:45.3]} 34. f3 {[%clk 0:00:53.6]} 34... Nh3+ {[%clk
0:02:41.7]} 35. Kh1 {[%clk 0:00:48.9]} 35... Qxd2 {[%clk 0:02:40.7]} 36. Bxh3
{[%clk 0:00:44.2]} 36... Qxe1+ {[%clk 0:02:39.5]} 37. Kg2 {[%clk 0:00:43.8]}
37... exf3+ {[%clk 0:02:37.4]} 38. Kxf3 {[%clk 0:00:41.9]} 38... Qe2+ {[%clk
0:02:36]} 39. Kg3 {[%clk 0:00:38.5]} 39... Re3+ {[%clk 0:02:34.2]} 40. Kh4
{[%clk 0:00:38.2]} 40... Re4+ {[%clk 0:02:31.4]} 41. Kg3 {[%clk 0:00:37]} 41...
h6 {[%clk 0:02:26.1]} 42. cxb7 {[%clk 0:00:35.8]} 42... Qd3+ {[%clk 0:02:22.8]}
43. Kg2 {[%clk 0:00:31]} 43... Re2+ {[%clk 0:02:22]} 44. Kg1 {[%clk 0:00:28.2]}
44... Qd1+ {[%clk 0:02:21.2]} 45. Bf1 {[%clk 0:00:27.8]} 45... Rb2 {[%clk
0:02:15.8]} 46. h3 {[%clk 0:00:21.4]} 46... Qd4+ {[%clk 0:02:13]} 47. Kh1 {[%clk
0:00:17.7]} 47... Qe4+ {[%clk 0:02:11.5]} 48. Kg1 {[%clk 0:00:15.8]} 48... Qe3+
{[%clk 0:02:09.4]} 49. Kh1 {[%clk 0:00:15.6]} 49... Qf3+ {[%clk 0:02:08]} 50.
Kg1 {[%clk 0:00:14.3]} 50... Qg3+ {[%clk 0:02:07.2]} 51. Kh1 {[%clk 0:00:13.2]}
51... Rb1 {[%clk 0:02:03.9]} 52. b8=Q {[%clk 0:00:09.1]} 52... Rxf1# {[%clk
0:02:02.2]} 0-1

[Event "Live Chess"]
[Site "Chess.com"]
[Date "2023.05.20"]
[Round "-"]
[White "Daniel_Gliddon_FA"]
[Black "SaraTang"]
[Result "1-0"]
[WhiteElo "1110"]
[BlackElo "168"]
[TimeControl "300"]
[EndTime "9:28:06 PDT"]
[Termination "Daniel_Gliddon_FA won by checkmate"]

1. e4 {[%clk 0:04:54.4]} 1... e5 {[%clk 0:04:58.5]} 2. d4 {[%clk 0:04:49.8]}
2... exd4 {[%clk 0:04:57.4]} 3. c3 {[%clk 0:04:46.6]} 3... dxc3 {[%clk
0:04:55.9]} 4. Bc4 {[%clk 0:04:41]} 4... cxb2 {[%clk 0:04:54.4]} 5. Bxb2 {[%clk
0:04:39.6]} 5... Bb4+ {[%clk 0:04:45.7]} 6. Nc3 {[%clk 0:04:36]} 6... Bxc3+
{[%clk 0:04:42.8]} 7. Bxc3 {[%clk 0:04:32.5]} 7... Nf6 {[%clk 0:04:35.2]} 8. e5
{[%clk 0:04:24.3]} 8... Ng4 {[%clk 0:04:29.9]} 9. Qxg4 {[%clk 0:04:16.1]} 9...
g6 {[%clk 0:04:25.7]} 10. e6 {[%clk 0:04:10]} 10... fxe6 {[%clk 0:04:24.3]} 11.
Bxh8 {[%clk 0:04:07.8]} 11... h6 {[%clk 0:04:14.9]} 12. Qxg6+ {[%clk 0:04:02.4]}
12... Ke7 {[%clk 0:04:11.9]} 13. Bf6+ {[%clk 0:03:54.4]} 13... Kf8 {[%clk
0:04:09.5]} 14. Bxd8 {[%clk 0:03:52]} 14... Nc6 {[%clk 0:04:04.7]} 15. Qxh6+
{[%clk 0:03:48.4]} 15... Ke8 {[%clk 0:03:55.1]} 16. Qh8+ {[%clk 0:03:45.5]}
16... Kf7 {[%clk 0:03:53.6]} 17. Qf6+ {[%clk 0:03:42.9]} 17... Kg8 {[%clk
0:03:50.4]} 18. Nf3 {[%clk 0:03:35]} 18... Nxd8 {[%clk 0:03:48.6]} 19. Qxd8+
{[%clk 0:03:27.1]} 19... Kf7 {[%clk 0:03:44.2]} 20. Ng5+ {[%clk 0:03:24.3]}
20... Kg6 {[%clk 0:03:42.9]} 21. g4 {[%clk 0:03:15]} 21... e5 {[%clk 0:03:38.7]}
22. h4 {[%clk 0:02:43]} 22... e4 {[%clk 0:03:35.4]} 23. h5+ {[%clk 0:02:41.3]}
23... Kh6 {[%clk 0:03:32.4]} 24. Nf7+ {[%clk 0:02:35.3]} 24... Kg7 {[%clk
0:03:26.7]} 25. h6+ {[%clk 0:02:30.1]} 25... Kh7 {[%clk 0:03:24.9]} 26. Qh8+
{[%clk 0:02:19.5]} 26... Kg6 {[%clk 0:03:21.2]} 27. Qg7# {[%clk 0:02:18]} 1-0

[Event "Live Chess"]
[Site "Chess.com"]
[Date "2023.05.20"]
[Round "-"]
[White "JoshMcK"]
[Black "KuriyamaMiraiUA"]
[Result "0-1"]
[WhiteElo "1527"]
[BlackElo "622"]
[TimeControl "300"]
[EndTime "9:28:07 PDT"]
[Termination "KuriyamaMiraiUA won by resignation"]

1. e4 {[%clk 0:04:59.1]} 1... c6 {[%clk 0:04:58.2]} 2. d4 {[%clk 0:04:56.7]}
2... d5 {[%clk 0:04:57.4]} 3. e5 {[%clk 0:04:55.3]} 3... Bf5 {[%clk 0:04:52.5]}
4. h4 {[%clk 0:04:54.6]} 4... e6 {[%clk 0:04:43]} 5. g4 {[%clk 0:04:52.1]} 5...
Be4 {[%clk 0:04:38.6]} 6. f3 {[%clk 0:04:51.2]} 6... Bxc2 {[%clk 0:04:17.6]} 7.
Qxc2 {[%clk 0:04:49.2]} 7... a5 {[%clk 0:03:59.1]} 8. Bd2 {[%clk 0:04:45.7]}
8... Bb4 {[%clk 0:03:56.7]} 9. Bxb4 {[%clk 0:04:42.7]} 9... axb4 {[%clk
0:03:55.2]} 10. a3 {[%clk 0:04:41.9]} 10... bxa3 {[%clk 0:03:52.4]} 11. Rxa3
{[%clk 0:04:40.4]} 11... Rxa3 {[%clk 0:03:51]} 12. Nxa3 {[%clk 0:04:39]} 12...
Ne7 {[%clk 0:03:47.7]} 13. Bd3 {[%clk 0:04:36.2]} 13... h6 {[%clk 0:03:43.7]}
14. f4 {[%clk 0:04:31.8]} 14... g6 {[%clk 0:03:32.7]} 15. Nf3 {[%clk 0:04:29.4]}
15... Na6 {[%clk 0:03:23.3]} 16. Bxa6 {[%clk 0:04:09]} 16... bxa6 {[%clk
0:03:22.4]} 17. Qg2 {[%clk 0:04:03.3]} 17... O-O {[%clk 0:03:15]} 18. g5 {[%clk
0:04:00.1]} 18... h5 {[%clk 0:03:10.4]} 19. O-O {[%clk 0:03:51]} 19... Nf5
{[%clk 0:03:02.2]} 20. Qe2 {[%clk 0:03:46.2]} 20... Ng3 {[%clk 0:02:57.8]} 21.
Qxa6 {[%clk 0:03:40.4]} 21... Nxf1 {[%clk 0:02:52.3]} 22. Kxf1 {[%clk
0:03:40.3]} 22... Qa8 {[%clk 0:02:49.4]} 23. Qe2 {[%clk 0:03:09.2]} 23... Rb8
{[%clk 0:02:45]} 24. Ne1 {[%clk 0:03:06.2]} 24... Qb7 {[%clk 0:02:28.8]} 25. Nd3
{[%clk 0:03:04]} 25... Qa6 {[%clk 0:02:18.3]} 26. Ke1 {[%clk 0:02:36.8]} 26...
Rb3 {[%clk 0:02:09.1]} 27. Qc2 {[%clk 0:02:07.2]} 27... Qxd3 {[%clk 0:02:03]}
28. Qc1 {[%clk 0:01:47.8]} 28... Qxd4 {[%clk 0:01:54.6]} 29. Nc2 {[%clk
0:01:36.1]} 29... Qe4+ {[%clk 0:01:43.6]} 30. Kd1 {[%clk 0:01:31.6]} 30... Rd3+
{[%clk 0:01:42]} 31. Qd2 {[%clk 0:01:30.6]} 31... Rxd2+ {[%clk 0:01:40.7]} 32.
Kxd2 {[%clk 0:01:30.5]} 0-1

[Event "Live Chess"]
[Site "Chess.com"]
[Date "2023.05.20"]
[Round "-"]
[White "IanCalvert2"]
[Black "Jio85"]
[Result "1/2-1/2"]
[WhiteElo "1581"]
[BlackElo "2026"]
[TimeControl "300"]
[EndTime "9:28:09 PDT"]
[Termination "Game drawn - insufficient material"]

1. b3 {[%clk 0:04:54.9]} 1... e5 {[%clk 0:04:58]} 2. Bb2 {[%clk 0:04:53.8]} 2...
Nc6 {[%clk 0:04:57.6]} 3. e3 {[%clk 0:04:52.6]} 3... d6 {[%clk 0:04:57]} 4. Nf3
{[%clk 0:04:50.1]} 4... Nge7 {[%clk 0:04:55.2]} 5. d4 {[%clk 0:04:48.5]} 5...
exd4 {[%clk 0:04:52.1]} 6. Nxd4 {[%clk 0:04:46.6]} 6... Nxd4 {[%clk 0:04:50.1]}
7. Qxd4 {[%clk 0:04:44.5]} 7... Nf5 {[%clk 0:04:41.9]} 8. Qd2 {[%clk 0:04:25.4]}
8... Bd7 {[%clk 0:04:29.1]} 9. Nc3 {[%clk 0:04:20.4]} 9... c6 {[%clk 0:04:20]}
10. g3 {[%clk 0:03:56.2]} 10... d5 {[%clk 0:04:14.7]} 11. Bg2 {[%clk 0:03:53.6]}
11... Nd6 {[%clk 0:04:11.4]} 12. O-O {[%clk 0:03:39.6]} 12... Be7 {[%clk
0:04:06.7]} 13. e4 {[%clk 0:03:36.8]} 13... dxe4 {[%clk 0:04:03.5]} 14. Nxe4
{[%clk 0:03:32.7]} 14... Nxe4 {[%clk 0:04:00.4]} 15. Bxe4 {[%clk 0:03:28.9]}
15... O-O {[%clk 0:03:59.5]} 16. Rfd1 {[%clk 0:03:05.1]} 16... Bg4 {[%clk
0:03:26.9]} 17. Qxd8 {[%clk 0:02:49.3]} 17... Rfxd8 {[%clk 0:03:25.4]} 18. Rxd8+
{[%clk 0:02:44.1]} 18... Rxd8 {[%clk 0:03:25.3]} 19. Bd3 {[%clk 0:02:37.1]}
19... Bc5 {[%clk 0:03:20.1]} 20. Re1 {[%clk 0:02:28.6]} 20... g6 {[%clk
0:03:15.8]} 21. Kg2 {[%clk 0:02:23.2]} 21... Be6 {[%clk 0:03:13.7]} 22. Bc1
{[%clk 0:02:06.2]} 22... Bd5+ {[%clk 0:02:57.6]} 23. Kg1 {[%clk 0:02:03.2]}
23... Rd6 {[%clk 0:02:47.1]} 24. Be3 {[%clk 0:01:50.6]} 24... Re6 {[%clk
0:02:41]} 25. Kf1 {[%clk 0:01:46.1]} 25... Bxe3 {[%clk 0:02:34.8]} 26. Rxe3
{[%clk 0:01:42.4]} 26... Rxe3 {[%clk 0:02:33.9]} 27. fxe3 {[%clk 0:01:41.2]}
27... f5 {[%clk 0:02:32.9]} 28. c4 {[%clk 0:01:35.4]} 28... Be6 {[%clk
0:02:30.5]} 29. e4 {[%clk 0:01:33.6]} 29... Kf7 {[%clk 0:02:24.9]} 30. exf5
{[%clk 0:01:31.6]} 30... Bxf5 {[%clk 0:02:23.8]} 31. Bxf5 {[%clk 0:01:30.6]}
31... gxf5 {[%clk 0:02:22.9]} 32. Kf2 {[%clk 0:01:30.1]} 32... Ke6 {[%clk
0:02:22.2]} 33. Ke3 {[%clk 0:01:29]} 33... Ke5 {[%clk 0:02:21.9]} 34. b4 {[%clk
0:01:23.9]} 34... b6 {[%clk 0:02:19.5]} 35. a4 {[%clk 0:01:18.9]} 35... a6
{[%clk 0:02:15]} 36. h3 {[%clk 0:01:13.4]} 36... h5 {[%clk 0:02:13.5]} 37. h4
{[%clk 0:01:10.1]} 37... b5 {[%clk 0:01:58.9]} 38. axb5 {[%clk 0:01:05.5]} 38...
axb5 {[%clk 0:01:57.9]} 39. cxb5 {[%clk 0:01:04.2]} 39... cxb5 {[%clk
0:01:57.2]} 40. Kf3 {[%clk 0:01:00.6]} 40... Kd4 {[%clk 0:01:37.5]} 41. Kf4
{[%clk 0:00:59.1]} 41... Kc4 {[%clk 0:01:37]} 42. Kxf5 {[%clk 0:00:58.1]} 42...
Kxb4 {[%clk 0:01:36.5]} 43. g4 {[%clk 0:00:57.2]} 43... hxg4 {[%clk 0:01:35]}
44. Kxg4 {[%clk 0:00:55.4]} 44... Kc4 {[%clk 0:01:34.1]} 45. h5 {[%clk
0:00:54.9]} 45... b4 {[%clk 0:01:33.4]} 46. h6 {[%clk 0:00:54.3]} 46... b3
{[%clk 0:01:33]} 47. h7 {[%clk 0:00:53.6]} 47... b2 {[%clk 0:01:32.6]} 48. h8=Q
{[%clk 0:00:51.8]} 48... b1=Q {[%clk 0:01:32.5]} 49. Qc8+ {[%clk 0:00:50.1]}
49... Kd4 {[%clk 0:01:29.3]} 50. Qd7+ {[%clk 0:00:46.1]} 50... Ke3 {[%clk
0:01:26.8]} 51. Qe6+ {[%clk 0:00:43.1]} 51... Kf2 {[%clk 0:01:24.2]} 52. Qf5+
{[%clk 0:00:41.9]} 52... Qxf5+ {[%clk 0:01:22.5]} 53. Kxf5 {[%clk 0:00:40.8]}
1/2-1/2

[Event "Live Chess"]
[Site "Chess.com"]
[Date "2023.05.20"]
[Round "-"]
[White "Trendle"]
[Black "azimchess2019"]
[Result "1-0"]
[WhiteElo "2680"]
[BlackElo "1329"]
[TimeControl "300"]
[EndTime "9:28:14 PDT"]
[Termination "Trendle won on time"]

1. f4 {[%clk 0:04:57.5]} 1... e6 {[%clk 0:04:51.9]} 2. Nf3 {[%clk 0:04:55.6]}
2... d5 {[%clk 0:04:49.4]} 3. g3 {[%clk 0:04:54.9]} 3... Nf6 {[%clk 0:04:48.2]}
4. Bg2 {[%clk 0:04:54.5]} 4... c5 {[%clk 0:04:47.1]} 5. O-O {[%clk 0:04:54.1]}
5... Nc6 {[%clk 0:04:46.4]} 6. d3 {[%clk 0:04:53.8]} 6... Be7 {[%clk 0:04:44.5]}
7. Nc3 {[%clk 0:04:53.5]} 7... O-O {[%clk 0:04:43.8]} 8. e4 {[%clk 0:04:53.1]}
8... dxe4 {[%clk 0:04:21]} 9. dxe4 {[%clk 0:04:53]} 9... Qb6 {[%clk 0:04:18.8]}
10. e5 {[%clk 0:04:50.2]} 10... Nd5 {[%clk 0:04:06.9]} 11. Nxd5 {[%clk
0:04:47.5]} 11... exd5 {[%clk 0:04:06.8]} 12. Qxd5 {[%clk 0:04:46]} 12... Be6
{[%clk 0:04:06.3]} 13. Qe4 {[%clk 0:04:44.1]} 13... g6 {[%clk 0:04:01.5]} 14. b3
{[%clk 0:04:33.9]} 14... Bf5 {[%clk 0:03:54]} 15. Qe2 {[%clk 0:04:32.2]} 15...
Rad8 {[%clk 0:03:48.8]} 16. Be3 {[%clk 0:04:20.8]} 16... Nb4 {[%clk 0:03:41.1]}
17. Rfc1 {[%clk 0:04:12.7]} 17... f6 {[%clk 0:03:33.9]} 18. Bf2 {[%clk
0:04:02.1]} 18... Nd5 {[%clk 0:03:20.8]} 19. c3 {[%clk 0:03:49.3]} 19... a5
{[%clk 0:03:10.7]} 20. exf6 {[%clk 0:03:44.4]} 20... Bxf6 {[%clk 0:03:07.4]} 21.
Ne5 {[%clk 0:03:44.1]} 21... Rfe8 {[%clk 0:03:03.3]} 22. Qc4 {[%clk 0:03:22.9]}
22... Be6 {[%clk 0:02:37.1]} 23. Qa4 {[%clk 0:03:20.9]} 23... Qc7 {[%clk
0:02:25.1]} 24. Rc2 {[%clk 0:03:10.6]} 24... Rb8 {[%clk 0:02:08]} 25. Qb5 {[%clk
0:02:54]} 25... Bxe5 {[%clk 0:02:01.3]} 26. fxe5 {[%clk 0:02:52.5]} 26... b6
{[%clk 0:01:59.3]} 27. Re1 {[%clk 0:02:47.8]} 27... Rbd8 {[%clk 0:01:51.2]} 28.
h4 {[%clk 0:02:31.6]} 28... Kg7 {[%clk 0:01:34.2]} 29. Qe2 {[%clk 0:02:27.6]}
29... Ne7 {[%clk 0:01:28.4]} 30. Rd2 {[%clk 0:02:24.5]} 30... c4 {[%clk
0:01:19.4]} 31. bxc4 {[%clk 0:02:11]} 31... Nc8 {[%clk 0:01:05.9]} 32. Rd4
{[%clk 0:02:03.7]} 32... Ne7 {[%clk 0:00:54.7]} 33. Rd6 {[%clk 0:01:58.4]} 33...
Nc8 {[%clk 0:00:48.1]} 34. Rd4 {[%clk 0:01:53.8]} 34... Ne7 {[%clk 0:00:45.5]}
35. Be3 {[%clk 0:01:41.4]} 35... Nf5 {[%clk 0:00:39.6]} 36. Rxd8 {[%clk
0:01:39]} 36... Rxd8 {[%clk 0:00:37.6]} 37. Bg5 {[%clk 0:01:33.4]} 37... Rf8
{[%clk 0:00:30.2]} 38. Kh2 {[%clk 0:01:29.7]} 38... h6 {[%clk 0:00:28.5]} 39.
Bf6+ {[%clk 0:01:28.9]} 39... Kh7 {[%clk 0:00:27.3]} 40. Rd1 {[%clk 0:01:16.1]}
40... Qxc4 {[%clk 0:00:26.3]} 41. Qxc4 {[%clk 0:01:15]} 41... Bxc4 {[%clk
0:00:25.5]} 42. Rd7+ {[%clk 0:01:13]} 42... Rf7 {[%clk 0:00:24.7]} 43. Rd8
{[%clk 0:01:11]} 43... Ng7 {[%clk 0:00:22]} 44. Be4 {[%clk 0:01:09.5]} 44... b5
{[%clk 0:00:17.7]} 45. h5 {[%clk 0:01:06.6]} 1-0

[Event "Live Chess"]
[Site "Chess.com"]
[Date "2023.05.20"]
[Round "-"]
[White "lightningorderyt"]
[Black "Bot_Boy"]
[Result "1-0"]
[WhiteElo "520"]
[BlackElo "329"]
[TimeControl "300"]
[EndTime "9:28:17 PDT"]
[Termination "lightningorderyt won on time"]

1. d4 {[%clk 0:04:59]} 1... d5 {[%clk 0:04:58.9]} 2. c4 {[%clk 0:04:58.6]} 2...
Nf6 {[%clk 0:04:54.5]} 3. Nc3 {[%clk 0:04:55.4]} 3... dxc4 {[%clk 0:04:49.8]} 4.
e4 {[%clk 0:04:52.3]} 4... e6 {[%clk 0:04:42.6]} 5. Bxc4 {[%clk 0:04:46.4]} 5...
Bb4 {[%clk 0:04:41.1]} 6. f3 {[%clk 0:04:36.8]} 6... Bxc3+ {[%clk 0:04:32.5]} 7.
bxc3 {[%clk 0:04:34.3]} 7... Bd7 {[%clk 0:04:25.7]} 8. Ne2 {[%clk 0:04:32.7]}
8... Ng8 {[%clk 0:03:52]} 9. Bf4 {[%clk 0:04:21.1]} 9... Nc6 {[%clk 0:03:36.4]}
10. O-O {[%clk 0:04:18.1]} 10... Nce7 {[%clk 0:03:19.2]} 11. Qb3 {[%clk
0:04:13.5]} 11... Rb8 {[%clk 0:02:52.1]} 12. Bb5 {[%clk 0:03:53.7]} 12... Bxb5
{[%clk 0:02:18.8]} 13. Qxb5+ {[%clk 0:03:51.9]} 13... Kf8 {[%clk 0:02:11.9]} 14.
Qc4 {[%clk 0:03:35.6]} 14... Nc6 {[%clk 0:01:34]} 15. d5 {[%clk 0:03:26.2]}
15... exd5 {[%clk 0:00:48.1]} 16. exd5 {[%clk 0:03:24.9]} 16... Na5 {[%clk
0:00:35.5]} 17. Qc5+ {[%clk 0:03:20.8]} 17... Ne7 {[%clk 0:00:19.7]} 18. Qxa5
{[%clk 0:03:18.6]} 18... Nxd5 {[%clk 0:00:16]} 19. Bg3 {[%clk 0:03:12.9]} 19...
a6 {[%clk 0:00:08.9]} 20. Nf4 {[%clk 0:03:09.2]} 20... Nxf4 {[%clk 0:00:02.1]}
21. Bxf4 {[%clk 0:03:08.1]} 1-0

[Event "Live Chess"]
[Site "Chess.com"]
[Date "2023.05.20"]
[Round "-"]
[White "JashonTOGM"]
[Black "stevefairhurst"]
[Result "1-0"]
[WhiteElo "1080"]
[BlackElo "523"]
[TimeControl "300"]
[EndTime "9:28:19 PDT"]
[Termination "JashonTOGM won by checkmate"]

1. d4 {[%clk 0:04:55.9]} 1... d5 {[%clk 0:04:58.9]} 2. c4 {[%clk 0:04:53]} 2...
c5 {[%clk 0:04:55.4]} 3. cxd5 {[%clk 0:04:50]} 3... cxd4 {[%clk 0:04:54.4]} 4.
Qxd4 {[%clk 0:04:48.7]} 4... Nf6 {[%clk 0:04:52.3]} 5. e4 {[%clk 0:04:44.8]}
5... Bg4 {[%clk 0:04:43.3]} 6. Nc3 {[%clk 0:04:42]} 6... e5 {[%clk 0:04:36.2]}
7. Qxe5+ {[%clk 0:04:39.4]} 7... Qe7 {[%clk 0:04:34.9]} 8. Bb5+ {[%clk
0:04:30.7]} 8... Kd8 {[%clk 0:04:28.1]} 9. Qxe7+ {[%clk 0:04:17.8]} 9... Bxe7
{[%clk 0:04:26.3]} 10. e5 {[%clk 0:04:08.8]} 10... Nh5 {[%clk 0:04:19]} 11. f3
{[%clk 0:04:05.4]} 11... Bf5 {[%clk 0:04:13.1]} 12. g4 {[%clk 0:04:02.6]} 12...
Nf4 {[%clk 0:04:11.3]} 13. Bxf4 {[%clk 0:03:59.4]} 13... Bb4 {[%clk 0:04:07.4]}
14. gxf5 {[%clk 0:03:54]} 14... Bxc3+ {[%clk 0:04:03.9]} 15. bxc3 {[%clk
0:03:52.5]} 15... a6 {[%clk 0:04:01.6]} 16. Bg5+ {[%clk 0:03:50.3]} 16... f6
{[%clk 0:03:59.7]} 17. exf6 {[%clk 0:03:48.3]} 17... gxf6 {[%clk 0:03:58.7]} 18.
Bxf6+ {[%clk 0:03:46.9]} 18... Kc7 {[%clk 0:03:56.1]} 19. Bxh8 {[%clk 0:03:45]}
19... axb5 {[%clk 0:03:51.8]} 20. Rb1 {[%clk 0:03:43.6]} 20... Na6 {[%clk
0:03:48.9]} 21. Bd4 {[%clk 0:03:41.4]} 21... Re8+ {[%clk 0:03:42.6]} 22. Ne2
{[%clk 0:03:39.2]} 22... h5 {[%clk 0:03:38.7]} 23. Rxb5 {[%clk 0:03:35.2]} 23...
Kd6 {[%clk 0:03:30.9]} 24. Rxb7 {[%clk 0:03:24.8]} 24... Nc7 {[%clk 0:03:24.8]}
25. Rb6+ {[%clk 0:03:21.5]} 25... Kxd5 {[%clk 0:03:21.3]} 26. Rb2 {[%clk
0:03:13.8]} 26... h4 {[%clk 0:03:15.7]} 27. O-O {[%clk 0:03:11.1]} 27... Rg8+
{[%clk 0:03:10.8]} 28. Kh1 {[%clk 0:03:08.1]} 28... h3 {[%clk 0:03:08.6]} 29.
Nf4+ {[%clk 0:03:05.7]} 29... Kc6 {[%clk 0:02:56.6]} 30. Rb6+ {[%clk 0:02:58.9]}
30... Kd7 {[%clk 0:02:51.4]} 31. Rd1 {[%clk 0:02:48.8]} 31... Kc8 {[%clk
0:02:42.8]} 32. Be5 {[%clk 0:02:41.2]} 32... Ne8 {[%clk 0:02:35.5]} 33. Rc6+
{[%clk 0:02:36.8]} 33... Kb7 {[%clk 0:02:32.6]} 34. Rc4 {[%clk 0:02:29.9]} 34...
Ng7 {[%clk 0:02:21.4]} 35. Rb1+ {[%clk 0:02:26.9]} 35... Ka6 {[%clk 0:02:18.6]}
36. Ra4# {[%clk 0:02:21]} 1-0

[Event "Live Chess"]
[Site "Chess.com"]
[Date "2023.05.20"]
[Round "-"]
[White "AttackingSnowLeopard"]
[Black "LiamBellwood"]
[Result "1-0"]
[WhiteElo "2017"]
[BlackElo "2106"]
[TimeControl "300"]
[EndTime "9:28:19 PDT"]
[Termination "AttackingSnowLeopard won by resignation"]

1. d4 {[%clk 0:04:58.5]} 1... e6 {[%clk 0:04:59.9]} 2. c4 {[%clk 0:04:57.1]}
2... f5 {[%clk 0:04:59.4]} 3. g3 {[%clk 0:04:55.2]} 3... Nf6 {[%clk 0:04:59]} 4.
Bg2 {[%clk 0:04:54.8]} 4... Be7 {[%clk 0:04:58.7]} 5. Nf3 {[%clk 0:04:54.1]}
5... O-O {[%clk 0:04:58.4]} 6. O-O {[%clk 0:04:53.7]} 6... d6 {[%clk 0:04:58]}
7. Nc3 {[%clk 0:04:52.6]} 7... a5 {[%clk 0:04:57.7]} 8. b3 {[%clk 0:04:48.6]}
8... Ne4 {[%clk 0:04:56.6]} 9. Bb2 {[%clk 0:04:46]} 9... Nxc3 {[%clk 0:04:56.1]}
10. Bxc3 {[%clk 0:04:45]} 10... Qe8 {[%clk 0:04:56]} 11. a3 {[%clk 0:04:39.3]}
11... Bf6 {[%clk 0:04:21.2]} 12. Qd3 {[%clk 0:04:27.3]} 12... Qg6 {[%clk
0:04:12.8]} 13. b4 {[%clk 0:04:20]} 13... axb4 {[%clk 0:03:34.7]} 14. axb4
{[%clk 0:04:19.9]} 14... Nc6 {[%clk 0:03:34.2]} 1-0